fUSD/lending_fUSD_20240428
["ID","MTS","AMOUNT","RATE_DAILY","PERIOD"]
[61145,1714333891560,-226.89953708,0.0001315,2]
[61147,1714333891578,-500.0,0.0001315,2]
[61149,1714333891597,-500.0,0.0001315,2]
[61151,1714333891617,-500.0,0.0001315,2]
[61153,1714333891636,-500.0,0.0001315,2]
[61155,1714333891656,-1063.6,0.0001315,2]
[61157,1714333891675,-500.0,0.0001315,2]
[61159,1714333891695,-500.0,0.0001315,2]
[61161,1714333891718,-500.0,0.0001315,2]
[61163,1714333891737,-500.0,0.0001315,2]
[61165,1714333891757,-500.0,0.0001315,2]
[61167,1714333891776,-500.0,0.0001315,2]
[61169,1714333891795,-500.0,0.0001315,2]
[61171,1714333891815,-500.0,0.0001315,2]
[61172,1714333891825,-754.87,0.0001315,2]
[61173,1714333891834,-191.06707621,0.0001315,2]
[61175,1714333891854,-500.0,0.0001315,2]
[61177,1714333891873,-500.0,0.0001315,2]
[61179,1714333891983,-512.94,0.0001315,2]
[61181,1714333892001,-500.0,0.0001315,2]
[61183,1714333892020,-500.0,0.0001315,2]
[61185,1714333892042,-580.36,0.0001315,2]
[61187,1714333892061,-500.0,0.0001315,2]
[61189,1714333892083,-500.0,0.0001315,2]
[61191,1714333892102,-500.0,0.0001315,2]
[61193,1714333892122,-500.0,0.0001315,2]
[61195,1714333892141,-500.0,0.0001315,2]
[61197,1714333892160,-500.0,0.0001315,2]
[61199,1714333892178,-376.83,0.0001315,2]
[61201,1714333892196,-500.0,0.0001315,2]
[61203,1714333892215,-500.0,0.0001315,2]
[61205,1714333892234,-500.0,0.0001315,2]
[61207,1714333892252,-749.09,0.0001315,2]
[61209,1714333892270,-500.0,0.0001315,2]
[61211,1714333892289,-500.0,0.0001315,2]
[61213,1714333892309,-500.0,0.0001315,2]
[61215,1714333892328,-500.0,0.0001315,2]
[61217,1714333892346,-500.0,0.0001315,2]
[61219,1714333892365,-500.0,0.0001315,2]
[61221,1714333892383,-500.0,0.0001315,2]
[61223,1714333892402,-500.0,0.0001315,2]
[61225,1714333892421,-500.0,0.0001315,2]
[61227,1714333892439,-500.0,0.0001315,2]
[61229,1714333892458,-980.94,0.0001315,2]
[61231,1714333892477,-732.51,0.0001315,2]
[61233,1714333892497,-683.63,0.0001315,2]
[61235,1714333892516,-500.0,0.0001315,2]
[61237,1714333892535,-500.0,0.0001315,2]
[61239,1714333892555,-314.67727199,0.0001315,2]
[61241,1714333892573,-500.0,0.0001315,2]
[61243,1714333892592,-500.0,0.0001315,2]
[61245,1714333892611,-500.0,0.0001315,2]
[61247,1714333892630,-500.0,0.0001315,2]
[61249,1714333892648,-500.0,0.0001315,2]
[61251,1714333892667,-500.0,0.0001315,2]
[61253,1714333892686,-500.0,0.0001315,2]
[61255,1714333892705,-970.58,0.0001315,2]
[61257,1714333892724,-500.0,0.0001315,2]
[61259,1714333892742,-1130.44,0.0001315,2]
[61261,1714333892760,-500.0,0.0001315,2]
[61263,1714333892778,-500.0,0.0001315,2]
[61265,1714333892796,-610.07,0.0001315,2]
[61267,1714333892814,-802.03,0.0001315,2]
[61269,1714333892833,-500.0,0.0001315,2]
[61271,1714333892851,-500.0,0.0001315,2]
[61273,1714333892870,-2244.82,0.0001315,2]
[61275,1714333892889,-500.0,0.0001315,2]
[61277,1714333892907,-643.85,0.0001315,2]
[61279,1714333892925,-500.0,0.0001315,2]
[61281,1714333892944,-1510.64,0.0001315,2]
[61283,1714333892965,-500.0,0.0001315,2]
[61285,1714333892983,-500.0,0.0001315,2]
[61287,1714333893002,-210.66223605,0.0001315,2]
[61289,1714333893022,-930.99,0.0001315,2]
[61291,1714333893044,-809.24,0.0001315,2]
[61293,1714333893062,-500.0,0.0001315,2]
[61295,1714333893083,-500.0,0.0001315,2]
[61297,1714333893101,-500.0,0.0001315,2]
[61299,1714333893119,-500.0,0.0001315,2]
[61301,1714333893138,-669.74,0.0001315,2]
[61303,1714333893157,-500.0,0.0001315,2]
[61305,1714333893176,-500.0,0.0001315,2]
[61307,1714333893194,-500.0,0.0001315,2]
[61309,1714333893212,-500.0,0.0001315,2]
[61311,1714333893231,-500.0,0.0001315,2]
[61313,1714333893249,-500.0,0.0001315,2]
[61315,1714333893270,-499.75331235,0.0001315,2]
[61317,1714333893289,-1468.32,0.0001315,2]
[61319,1714333893307,-500.0,0.0001315,2]
[61320,1714333893316,-2433.94,0.0001315,2]
[61321,1714333893325,-500.0,0.0001315,2]
[61323,1714333893343,-7669.52,0.0001315,2]
[61325,1714333893362,-500.0,0.0001315,2]
[61327,1714333893381,-500.0,0.0001315,2]
[61329,1714333893400,-1205.49,0.0001315,2]
[61331,1714333893418,-500.0,0.0001315,2]
[61333,1714333893437,-500.0,0.0001315,2]
[61335,1714333893458,-1020.65,0.0001315,2]
[61337,1714333893478,-500.0,0.0001315,2]
[61339,1714333893496,-500.0,0.0001315,2]
[61341,1714333893515,-820.48,0.0001315,2]
[61343,1714333893534,-500.0,0.0001315,2]
[61345,1714333893554,-500.0,0.0001315,2]
[61347,1714333893574,-500.0,0.0001315,2]
[61349,1714333893593,-877.73,0.0001315,2]
[61351,1714333893611,-500.0,0.0001315,2]
[61353,1714333893632,-500.0,0.0001315,2]
[61355,1714333893652,-633.35151338,0.0001315,2]
[61357,1714333893672,-1200.84,0.0001315,2]
[61359,1714333893691,-736.19,0.0001315,2]
[61361,1714333893711,-1078.64,0.0001315,2]
[61363,1714333893730,-500.0,0.0001315,2]
[61365,1714333893749,-660.63,0.0001315,2]
[61367,1714333893768,-3293.48,0.0001315,2]
[61369,1714333893787,-1383.26,0.0001315,2]
[61371,1714333893806,-1038.55,0.0001315,2]
[61373,1714333893825,-2363.73,0.0001315,2]
[61375,1714333893843,-1482.37,0.0001315,2]
[61377,1714333893861,-635.98,0.0001315,2]
[61379,1714333893881,-1107.0,0.0001315,2]
[61381,1714333893899,-500.0,0.0001315,2]
[61383,1714333893950,-1887.52,0.0001315,2]
[61385,1714333893970,-500.0,0.0001315,2]
[61387,1714333893990,-500.0,0.0001315,2]
[61389,1714333894009,-2646.6,0.0001315,2]
[61391,1714333894029,-1312.38,0.0001315,2]
[61392,1714333894041,-500.0,0.0001315,2]
[61393,1714333894051,-2191.19,0.0001315,2]
[61394,1714333894060,-500.0,0.0001315,2]
[61395,1714333894070,-2890.81,0.0001315,2]
[61397,1714333894088,-500.0,0.0001315,2]
[61399,1714333894107,-1377.83,0.0001315,2]
[61401,1714333894128,-500.0,0.0001315,2]
[61403,1714333894147,-814.52,0.0001315,2]
[61405,1714333894166,-500.0,0.0001315,2]
[61407,1714333894186,-500.0,0.0001315,2]
[61409,1714333894206,-621.4,0.0001315,2]
[61411,1714333894225,-500.0,0.0001315,2]
[61413,1714333894244,-1278.3,0.0001315,2]
[61415,1714333894262,-1146.85,0.0001315,2]
[61417,1714333894282,-500.0,0.0001315,2]
[61419,1714333894300,-3171.22,0.0001315,2]
[61421,1714333894319,-2674.38,0.0001315,2]
[61423,1714333894337,-500.0,0.0001315,2]
[61425,1714333894355,-856.24,0.0001315,2]
[61427,1714333894373,-500.0,0.0001315,2]
[61429,1714333894392,-500.0,0.0001315,2]
[61431,1714333894410,-500.0,0.0001315,2]
[61433,1714333894428,-978.42,0.0001315,2]
[61435,1714333894447,-500.0,0.0001315,2]
[61437,1714333894465,-8320.09,0.0001315,2]
[61439,1714333894484,-532.07,0.0001315,2]
[61441,1714333894503,-500.0,0.0001315,2]
[61443,1714333894521,-500.0,0.0001315,2]
[61445,1714333894539,-500.0,0.0001315,2]
[61447,1714333894557,-500.0,0.0001315,2]
[61449,1714333894577,-3853.58,0.0001315,2]
[61451,1714333894597,-673.74,0.0001315,2]
[61453,1714333894617,-705.71,0.0001315,2]
[61455,1714333894636,-1000.0,0.00013286,2]
[61457,1714333894654,-500.0,0.00013424,2]
[61459,1714333894674,-293.96,0.00013424,2]
[61461,1714333894694,-237.3,0.00013424,2]
[61463,1714333894713,-268.42,0.00013424,2]
[61465,1714333894733,-500.0,0.00013424,2]
[61467,1714333894752,-552.2,0.00013424,2]
[61469,1714333894771,-500.0,0.00013424,2]
[61471,1714333894790,-551.2,0.00013424,2]
[61473,1714333894809,-500.0,0.00013424,2]
[61475,1714333894828,-500.0,0.00013424,2]
[61477,1714333894848,-500.0,0.00013424,2]
[61479,1714333894867,-500.0,0.00013424,2]
[61481,1714333894886,-168.56,0.00013424,2]
[61483,1714333894906,-500.0,0.00013424,2]
[61485,1714333894925,-500.0,0.00013424,2]
[61487,1714333894944,-525.59,0.00013424,2]
[61488,1714333894954,-500.0,0.00013424,2]
[61489,1714333894963,-500.0,0.00013424,2]
[61490,1714333894973,-484.29,0.00013424,2]
[61491,1714333894983,-500.0,0.00013424,2]
[61492,1714333894992,-500.0,0.00013424,2]
[61493,1714333895002,-500.0,0.00013424,2]
[61494,1714333895012,-500.0,0.00013424,2]
[61495,1714333895022,-534.95,0.00013424,2]
[61497,1714333895047,-500.0,0.00013424,2]
[61498,1714333895057,-500.0,0.00013424,2]
[61499,1714333895067,-1063.6,0.00013424,2]
[61500,1714333895078,-500.0,0.00013424,2]
[61501,1714333895089,-427.51,0.00013424,2]
[61502,1714333895099,-1029.24,0.00013424,2]
[61503,1714333895109,-500.0,0.00013424,2]
[61505,1714333895129,-500.0,0.00013424,2]
[61506,1714333895140,-274.96,0.00013424,2]
[61507,1714333895150,-612.27251571,0.00013424,2]
[61509,1714333895171,-500.0,0.00013424,2]
[61511,1714333895191,-635.01,0.00013424,2]
[61513,1714333895211,-500.0,0.00013424,2]
[61514,1714333895221,-286.28702129,0.00013424,2]
[61515,1714333895231,-300.48,0.00013424,2]
[61516,1714333895240,-754.87,0.00013424,2]
[61517,1714333895250,-500.0,0.00013424,2]
[61519,1714333895269,-500.0,0.00013424,2]
[61521,1714333895288,-512.94,0.00013424,2]
[61523,1714333895308,-500.0,0.00013424,2]
[61524,1714333895317,-500.0,0.00013424,2]
[61525,1714333895327,-500.0,0.00013424,2]
[61527,1714333895348,-580.36,0.00013424,2]
[61529,1714333895369,-500.0,0.00013424,2]
[61531,1714333895390,-500.0,0.00013424,2]
[61533,1714333895411,-500.0,0.00013424,2]
[61534,1714333895421,-500.0,0.00013424,2]
[61535,1714333895432,-500.0,0.00013424,2]
[61536,1714333895443,-500.0,0.00013424,2]
[61537,1714333895454,-353.52,0.00013424,2]
[61539,1714333895475,-500.0,0.00013424,2]
[61541,1714333895497,-500.0,0.00013424,2]
[61542,1714333895508,-526.94,0.00013424,2]
[61543,1714333895518,-500.0,0.00013424,2]
[61544,1714333895528,-500.0,0.00013424,2]
[61545,1714333895539,-500.0,0.00013424,2]
[61546,1714333895549,-718.62,0.00013424,2]
[61547,1714333895559,-749.09,0.00013424,2]
[61548,1714333895570,-500.0,0.00013424,2]
[61549,1714333895579,-500.0,0.00013424,2]
[61551,1714333895600,-500.0,0.00013424,2]
[61553,1714333895622,-500.0,0.00013424,2]
[61554,1714333895632,-596.5,0.00013424,2]
[61555,1714333895642,-500.0,0.00013424,2]
[61556,1714333895652,-177.11,0.00013424,2]
[61557,1714333895662,-500.0,0.00013424,2]
[61558,1714333895672,-509.59,0.00013424,2]
[61559,1714333895683,-500.0,0.00013424,2]
[61560,1714333895694,-817.82,0.00013424,2]
[61561,1714333895705,-500.0,0.00013424,2]
[61562,1714333895715,-500.0,0.00013424,2]
[61563,1714333895727,-500.0,0.00013424,2]
[61564,1714333895737,-500.0,0.00013424,2]
[61565,1714333895747,-500.0,0.00013424,2]
[61566,1714333895758,-500.0,0.00013424,2]
[61567,1714333895768,-500.0,0.00013424,2]
[61569,1714333895789,-980.94,0.00013424,2]
[61571,1714333895810,-500.0,0.00013424,2]
[61573,1714333895832,-500.0,0.00013424,2]
[61575,1714333895854,-500.0,0.00013424,2]
[61577,1714333895875,-500.0,0.00013424,2]
[61579,1714333895897,-500.0,0.00013424,2]
[61581,1714333895919,-500.0,0.00013424,2]
[61583,1714333895939,-500.0,0.00013424,2]
[61584,1714333895950,-500.0,0.00013424,2]
[61585,1714333895961,-500.0,0.00013424,2]
[61587,1714333895980,-500.0,0.00013424,2]
[61589,1714333896001,-500.0,0.00013424,2]
[61591,1714333896023,-500.0,0.00013424,2]
[61593,1714333896047,-970.58,0.00013424,2]
[61595,1714333896069,-500.0,0.00013424,2]
[61597,1714333896090,-1130.44,0.00013424,2]
[61599,1714333896110,-500.0,0.00013424,2]
[61600,1714333896122,-594.1,0.00013424,2]
[61601,1714333896132,-500.0,0.00013424,2]
[61603,1714333896154,-500.0,0.00013424,2]
[61605,1714333896175,-802.03,0.00013424,2]
[61607,1714333896196,-500.0,0.00013424,2]
[61609,1714333896219,-500.0,0.00013424,2]
[61611,1714333896240,-2244.82,0.00013424,2]
[61613,1714333896261,-500.0,0.00013424,2]
[61615,1714333896282,-643.85,0.00013424,2]
[61617,1714333896303,-500.0,0.00013424,2]
[61619,1714333896324,-1510.64,0.00013424,2]
[61620,1714333896333,-7836.77,0.00013424,2]
[61621,1714333896344,-500.0,0.00013424,2]
[61622,1714333896355,-3738.06,0.00013424,2]
[61623,1714333896365,-500.0,0.00013424,2]
[61624,1714333896375,-2120.38,0.00013424,2]
[61625,1714333896386,-500.0,0.00013424,2]
[61626,1714333896396,-930.99,0.00013424,2]
[61627,1714333896406,-500.0,0.00013424,2]
[61629,1714333896427,-552.44,0.00013424,2]
[61631,1714333896448,-851.63,0.00013424,2]
[61633,1714333896469,-956.01,0.00013424,2]
[61635,1714333896491,-935.48,0.00013424,2]
[61637,1714333896512,-617.99198311,0.00013424,2]
[61639,1714333896533,-1854.49,0.00013424,2]
[61641,1714333896553,-557.3,0.00013424,2]
[61643,1714333896574,-2438.98,0.00013424,2]
[61645,1714333896595,-500.0,0.00013424,2]
[61647,1714333896615,-3234.99,0.00013424,2]
[61649,1714333896638,-1163.73,0.00013424,2]
[61651,1714333896661,-1439.84,0.00013424,2]
[61653,1714333896683,-1468.32,0.00013424,2]
[61655,1714333896705,-500.0,0.00013424,2]
[61657,1714333896725,-500.0,0.00013424,2]
[61659,1714333896746,-7669.52,0.00013424,2]
[61661,1714333896767,-500.0,0.00013424,2]
[61663,1714333896789,-500.0,0.00013424,2]
[61665,1714333897038,-1205.49,0.00013424,2]
[61667,1714333897063,-500.0,0.00013424,2]
[61669,1714333897083,-500.0,0.00013424,2]
[61671,1714333897104,-1568.12,0.00013424,2]
[61673,1714333897124,-1020.65,0.00013424,2]
[61675,1714333897144,-500.0,0.00013424,2]
[61677,1714333897164,-500.0,0.00013424,2]
[61679,1714333897185,-500.0,0.00013424,2]
[61681,1714333897204,-500.0,0.00013424,2]
[61683,1714333897224,-151.0,0.00013424,2]
[61685,1714333897243,-1549.96,0.00013424,2]
[61687,1714333897264,-686.14,0.00013424,2]
[61689,1714333897284,-500.0,0.00013424,2]
[61691,1714333897303,-1200.84,0.00013424,2]
[61693,1714333897322,-3667.260198,0.00013424,2]
[61695,1714333897342,-401.709272,0.00013424,2]
[61697,1714333897362,-3667.260198,0.00013424,2]
[61699,1714333897381,-401.709272,0.00013424,2]
[61701,1714333897401,-500.0,0.00013424,2]
[61703,1714333897420,-660.63,0.00013424,2]
[61705,1714333897440,-3293.48,0.00013424,2]
[61707,1714333897459,-500.0,0.00013424,2]
[61709,1714333897478,-666.21,0.00013424,2]
[61711,1714333897498,-582.9,0.00013424,2]
[61713,1714333897517,-475.096869,0.00013424,2]
[61715,1714333897536,-500.0,0.00013424,2]
[61717,1714333897555,-581.73,0.00013424,2]
[61719,1714333897575,-519.27,0.00013424,2]
[61721,1714333897595,-802.45,0.00013424,2]
[61723,1714333897615,-500.0,0.00013424,2]
[61724,1714333897624,-183.815406,0.00013424,2]
[61725,1714333897634,-1887.52,0.00013424,2]
[61727,1714333897653,-500.0,0.00013424,2]
[61728,1714333897663,-183.815406,0.00013424,2]
[61729,1714333897672,-500.0,0.00013424,2]
[61731,1714333897693,-2646.6,0.00013424,2]
[61733,1714333897713,-1312.38,0.00013424,2]
[61735,1714333897733,-500.0,0.00013424,2]
[61737,1714333897752,-2890.81,0.00013424,2]
[61739,1714333897772,-500.0,0.00013424,2]
[61741,1714333897792,-415.366769,0.00013424,2]
[61743,1714333897811,-500.0,0.00013424,2]
[61745,1714333897835,-500.0,0.00013424,2]
[61747,1714333897854,-255.08,0.00013424,2]
[61748,1714333897863,-814.52,0.00013424,2]
[61749,1714333897873,-877.24,0.00013424,2]
[61750,1714333897882,-500.0,0.00013424,2]
[61751,1714333897892,-2530.69,0.00013424,2]
[61752,1714333897902,-354.310905,0.00013424,2]
[61753,1714333897912,-500.0,0.00013424,2]
[61754,1714333897922,-500.0,0.00013424,2]
[61755,1714333897931,-621.4,0.00013424,2]
[61756,1714333897941,-2004.157995,0.00013424,2]
[61757,1714333897954,-500.0,0.00013424,2]
[61758,1714333897963,-500.0,0.00013424,2]
[61759,1714333897973,-2915.48,0.00013424,2]
[61760,1714333897982,-1278.3,0.00013424,2]
[61761,1714333897992,-522.259773,0.00013424,2]
[61762,1714333898002,-500.0,0.00013424,2]
[61763,1714333898012,-2004.157995,0.00013424,2]
[61764,1714333898021,-1146.85,0.00013424,2]
[61765,1714333898032,-500.0,0.00013424,2]
[61767,1714333898055,-500.0,0.00013424,2]
[61768,1714333898065,-763.84,0.00013424,2]
[61769,1714333898075,-3171.22,0.00013424,2]
[61770,1714333898086,-630.5,0.00013424,2]
[61771,1714333898096,-2674.38,0.00013424,2]
[61772,1714333898106,-2017.39,0.00013424,2]
[61773,1714333898116,-500.0,0.00013424,2]
[61774,1714333898126,-534.56,0.00013424,2]
[61775,1714333898135,-856.24,0.00013424,2]
[61776,1714333898145,-500.0,0.00013424,2]
[61777,1714333898154,-500.0,0.00013424,2]
[61778,1714333898164,-500.0,0.00013424,2]
[61779,1714333898173,-500.0,0.00013424,2]
[61780,1714333898183,-272.036326,0.00013424,2]
[61781,1714333898192,-272.036326,0.00013424,2]
[61782,1714333898202,-500.0,0.00013424,2]
[61783,1714333898212,-500.0,0.00013424,2]
[61784,1714333898222,-1121.09,0.00013424,2]
[61785,1714333898232,-978.42,0.00013424,2]
[61787,1714333898252,-281.141457,0.00013424,2]
[61789,1714333898271,-500.0,0.00013424,2]
[61791,1714333898290,-908.28,0.00013424,2]
[61793,1714333898309,-281.141457,0.00013424,2]
[61795,1714333898328,-500.0,0.00013424,2]
[61797,1714333898347,-509.22,0.00013424,2]
[61799,1714333898366,-647.31,0.00013424,2]
[61801,1714333898384,-914.72,0.00013424,2]
[61803,1714333898404,-151.0,0.00013424,2]
[61805,1714333898424,-3853.58,0.00013424,2]
[61807,1714333898444,-673.74,0.00013424,2]
[61808,1714333898454,-500.0,0.00013424,2]
[61809,1714333898464,-705.71,0.00013424,2]
[61810,1714333898474,-202.01,0.00013425,2]
[61811,1714333898484,-2269.65,0.00013425,2]
[61812,1714333898494,-530.0,0.00013425,2]
[61813,1714333898503,-150.0,0.00013495,2]
[61815,1714333898522,-500.0,0.00013698,2]
[61817,1714333898542,-639.12,0.00013698,2]
[61819,1714333898561,-500.0,0.00013698,2]
[61821,1714333898580,-500.0,0.00013698,2]
[61823,1714333898599,-500.0,0.00013698,2]
[61824,1714333898610,-533.53270389,0.00013698,2]
[61825,1714333898620,-199.36,0.00013698,2]
[61827,1714333898639,-500.0,0.00013698,2]
[61829,1714333898658,-500.0,0.00013698,2]
[61831,1714333898676,-216.56,0.00013698,2]
[61833,1714333898696,-500.0,0.00013698,2]
[61834,1714333898706,-645.86,0.00013698,2]
[61835,1714333898715,-582.79,0.00013698,2]
[61836,1714333898725,-500.0,0.00013698,2]
[61837,1714333898735,-464.68,0.00013698,2]
[61838,1714333898746,-500.0,0.00013698,2]
[61839,1714333898756,-500.0,0.00013698,2]
[61841,1714333898775,-500.0,0.00013698,2]
[61843,1714333898793,-500.0,0.00013698,2]
[61845,1714333898814,-500.0,0.00013698,2]
[61847,1714333898833,-500.0,0.00013698,2]
[61849,1714333898852,-500.0,0.00013698,2]
[61851,1714333898871,-500.0,0.00013698,2]
[61853,1714333898890,-500.0,0.00013698,2]
[61855,1714333898909,-754.87,0.00013698,2]
[61856,1714333898919,-500.0,0.00013698,2]
[61857,1714333898928,-500.0,0.00013698,2]
[61859,1714333898947,-512.94,0.00013698,2]
[61861,1714333898966,-500.0,0.00013698,2]
[61863,1714333898985,-500.0,0.00013698,2]
[61865,1714333899004,-580.36,0.00013698,2]
[61867,1714333899023,-220.56,0.00013698,2]
[61868,1714333899033,-1209.6,0.00013698,2]
[61869,1714333899046,-416.56,0.00013698,2]
[61871,1714333899065,-500.0,0.00013698,2]
[61873,1714333899085,-500.0,0.00013698,2]
[61875,1714333899105,-500.0,0.00013698,2]
[61877,1714333899129,-500.0,0.00013698,2]
[61879,1714333899149,-500.0,0.00013698,2]
[61880,1714333899158,-500.0,0.00013698,2]
[61881,1714333899167,-500.0,0.00013698,2]
[61883,1714333899191,-749.09,0.00013698,2]
[61885,1714333899210,-500.0,0.00013698,2]
[61887,1714333899229,-500.0,0.00013698,2]
[61889,1714333899248,-500.0,0.00013698,2]
[61891,1714333899267,-500.0,0.00013698,2]
[61893,1714333899286,-429.38,0.00013698,2]
[61895,1714333899304,-500.0,0.00013698,2]
[61897,1714333899324,-500.0,0.00013698,2]
[61899,1714333899342,-500.0,0.00013698,2]
[61901,1714333899427,-500.0,0.00013698,2]
[61903,1714333899446,-500.0,0.00013698,2]
[61905,1714333899466,-980.94,0.00013698,2]
[61907,1714333899485,-500.0,0.00013698,2]
[61909,1714333899505,-500.0,0.00013698,2]
[61911,1714333899525,-500.0,0.00013698,2]
[61913,1714333899544,-500.0,0.00013698,2]
[61915,1714333899562,-500.0,0.00013698,2]
[61917,1714333899581,-500.0,0.00013698,2]
[61919,1714333899599,-500.0,0.00013698,2]
[61921,1714333899617,-500.0,0.00013698,2]
[61923,1714333899636,-500.0,0.00013698,2]
[61925,1714333899656,-590.78,0.00013698,2]
[61927,1714333899676,-500.0,0.00013698,2]
[61929,1714333899696,-970.58,0.00013698,2]
[61931,1714333899716,-403.24,0.00013698,2]
[61933,1714333899735,-1130.44,0.00013698,2]
[61935,1714333899754,-500.0,0.00013698,2]
[61937,1714333899772,-500.0,0.00013698,2]
[61939,1714333899793,-500.0,0.00013698,2]
[61941,1714333899811,-802.03,0.00013698,2]
[61943,1714333899829,-500.0,0.00013698,2]
[61945,1714333899847,-500.0,0.00013698,2]
[61947,1714333899867,-2244.82,0.00013698,2]
[61949,1714333899886,-572.97,0.00013698,2]
[61951,1714333899904,-643.85,0.00013698,2]
[61953,1714333899923,-500.0,0.00013698,2]
[61955,1714333899941,-1510.64,0.00013698,2]
[61957,1714333899960,-500.0,0.00013698,2]
[61959,1714333899980,-500.0,0.00013698,2]
[61961,1714333899999,-500.0,0.00013698,2]
[61963,1714333900018,-500.0,0.00013698,2]
[61965,1714333900040,-552.44,0.00013698,2]
[61967,1714333900060,-851.63,0.00013698,2]
[61969,1714333900079,-956.01,0.00013698,2]
[61971,1714333900098,-935.48,0.00013698,2]
[61973,1714333900118,-669.74,0.00013698,2]
[61975,1714333900136,-151.0,0.00013698,2]
[61977,1714333900155,-500.0,0.00013698,2]
[61979,1714333900173,-500.0,0.00013698,2]
[61981,1714333900191,-151.0,0.00013698,2]
[61982,1714333900200,-500.0,0.00013698,2]
[61983,1714333900210,-500.0,0.00013698,2]
[61984,1714333900220,-500.0,0.00013698,2]
[61985,1714333900230,-488.494149,0.00013698,2]
[61986,1714333900239,-3234.99,0.00013698,2]
[61987,1714333900249,-500.0,0.00013698,2]
[61989,1714333900268,-500.0,0.00013698,2]
[61991,1714333900288,-2793.67,0.00013698,2]
[61993,1714333900308,-1468.32,0.00013698,2]
[61995,1714333900327,-2433.94,0.00013698,2]
[61997,1714333900347,-3274.87,0.00013698,2]
[61999,1714333900366,-1149.81,0.00013698,2]
[62001,1714333900386,-920.14,0.00013698,2]
[62003,1714333900405,-500.0,0.00013698,2]
[62005,1714333900424,-596.216723,0.00013698,2]
[62007,1714333900443,-1205.49,0.00013698,2]
[62009,1714333900463,-500.0,0.00013698,2]